Cogmind - Beta 13 --- EXPLORER MODE // 2024.06.09 @ 13:39:16 Player: Kinga Result: Self-destructed Performance ------------- Evolutions (7) 3500 Regions Visited (15) 3000 Robots Destroyed (222) 1110 Value Destroyed (9069) 9069 Prototype IDs (25) 500 Alien Tech Used (0) 0 Bonus (4298) 4298 TOTAL SCORE: 21477 Bonus ------- High Alert Combat Kills 150 Follower Combat Kills 1580 Aligned with FarCom 300 Built Enhanced Grunts 300 A7 Reached Mainframe 300 Met R17 at Research 2000 Friendly Fire -332 Cogmind --------- Core Integrity 1266/1300 Matter 300/300 Energy 639/740 System Corruption 0% Temperature Cool (0) Movement Treading (157) Location -3/Research Parts ------- > --- POWER (2) -------- Light Antimatter Reactor Light Antimatter Reactor > --- PROPULSION (6) --- Medium Treads Medium Treads Medium Treads Medium Treads Medium Treads Advanced Medium Treads > --- UTILITY (12) ----- Advanced Heat Sink Large Storage Unit Advanced Energy Well Structural Scanner Advanced Visual Processing Unit Armor Integrity Analyzer Advanced Transmission Jammer Centrium Medium Armor Plating Centrium Medium Armor Plating Graphene Brace Experimental Thermal Shield Long-range Tractor Beam > --- WEAPON (2) ------- Advanced Variable Charge Gun Advanced KE Penetrator > --- INVENTORY (15) --- Antimatter Reactor Light Antimatter Reactor Medium Treads Field Propulsion Array Advanced Particle Charger Improved Remote Force Field Hacking Suite Quantum Rifle Quantum Rifle Tiamat Missile Launcher Plasma Sword Peak State ------------ > --- POWER ------------ Light Antimatter Reactor Light Antimatter Reactor > --- PROPULSION ------- Medium Treads Medium Treads Medium Treads Medium Treads Medium Treads Advanced Medium Treads > --- UTILITY ---------- Advanced Heat Sink Large Storage Unit Advanced Energy Well Structural Scanner Advanced Visual Processing Unit Armor Integrity Analyzer Advanced Transmission Jammer Centrium Medium Armor Plating Centrium Medium Armor Plating Graphene Brace Experimental Thermal Shield Improved Remote Force Field > --- WEAPON ----------- Advanced Variable Charge Gun Advanced KE Penetrator > --- INVENTORY -------- Antimatter Reactor Light Antimatter Reactor Medium Treads Field Propulsion Array Advanced Particle Charger Improved Remote Force Field Hacking Suite Long-range Tractor Beam Quantum Rifle Quantum Rifle Tiamat Missile Launcher Plasma Sword [Rating: 136] Favorites ----------- Power Light Nuclear Core Engine Heavy Ion Engine Power Core Light Nuclear Core Reactor Light Antimatter Reactor Propulsion Medium Treads Treads Medium Treads Wheel Centrium Wheel Flight Unit Field Propulsion Array Utility High-capacity Storage Unit Device Advanced Heat Sink Storage High-capacity Storage Unit Processor Advanced Targeting Computer Hackware System Shield Protection Hardened Medium Armor Plating Weapon Cooled Particle Cannon Energy Gun Advanced Variable Charge Gun Energy Cannon Cooled Particle Cannon Ballistic Gun Assault Rifle Ballistic Cannon Flak Cannon Launcher Tiamat Missile Launcher Special Weapon Mining Laser Build | -11 -10 -10 -10 -9 -8 -7 -7 -6 -5 -4 -4 -4 -4 -4 -3 ------- Run | Yrd Mat Min Exi Min Mat Fac Sto Fac Fac Fac Ext Cet Arc Hub Res Slots Evolved 15 | . 1 . . . 4 2 . 2 2 2 . . . . 2 Power 1 | . . . . . 1 . . . . . . . . . . Propulsion 4 | . . . . . . 2 . . . . . . . . 2 Utility 10 | . 1 . . . 3 . . 2 2 2 . . . . . Weapon . | . . . . . . . . . . . . . . . . Parts Attached 213 | 7 12 2 5 2 25 32 9 19 15 24 34 15 4 1 7 Power 34 | 1 1 . . 1 8 5 2 1 2 5 4 3 . . 1 Engine 7 | 1 1 . . . 1 . 2 . . . 1 1 . . . Core 20 | . . . . 1 7 5 . 1 2 4 . . . . . Reactor 7 | . . . . . . . . . . 1 3 2 . . 1 Propulsion 53 | 2 4 . . . 1 10 2 6 4 6 9 2 4 . 3 Treads 40 | 2 2 . . . 1 10 2 6 4 4 2 . 4 . 3 Leg . | . . . . . . . . . . . . . . . . Wheel 4 | . . . . . . . . . . 2 2 . . . . Hover . | . . . . . . . . . . . . . . . . Flight 9 | . 2 . . . . . . . . . 5 2 . . . Utility 84 | 2 6 . 5 1 8 8 1 9 6 12 15 7 . 1 3 Device 42 | 1 3 . 3 1 4 4 . 3 2 6 9 4 . . 2 Storage 8 | 1 . . 1 . . . . . . 1 2 1 . 1 1 Processor 6 | . 1 . . . . 1 . 1 1 1 1 . . . . Hackware 5 | . . . . . . . . 2 1 1 1 . . . . Protection 23 | . 2 . 1 . 4 3 1 3 2 3 2 2 . . . Artifact . | . . . . . . . . . . . . . . . . Weapon 42 | 2 1 2 . . 8 9 4 3 3 1 6 3 . . . Energy Gun 9 | . 1 1 . . 1 2 . . . . 3 1 . . . Energy Cannon 14 | . . . . . . 3 3 3 2 1 2 . . . . Ballistic Gun 13 | 1 . 1 . . 7 2 1 . . . . 1 . . . Ballistic Cannon 1 | . . . . . . 1 . . . . . . . . . Launcher 4 | . . . . . . 1 . . 1 . 1 1 . . . Special Weapon 1 | 1 . . . . . . . . . . . . . . . Impact Weapon . | . . . . . . . . . . . . . . . . Slashing Weapon . | . . . . . . . . . . . . . . . . Piercing Weapon . | . . . . . . . . . . . . . . . . Special Melee Weapon . | . . . . . . . . . . . . . . . . Unidentified Prototypes 18 | . . . 3 1 1 4 2 . 1 . 1 5 . . . Parts Lost 50 | . . . . 1 4 5 3 1 3 15 16 2 . . . Power 10 | . . . . . 1 3 . . . 2 3 1 . . . Propulsion 9 | . . . . . . . 2 . 1 4 2 . . . . Utility 23 | . . . . . 2 2 1 1 1 8 7 1 . . . Weapon 8 | . . . . 1 1 . . . 1 1 4 . . . . Highest Loss Streak 9 | . . . . 1 2 2 2 1 1 3 9 2 . . . To Critical Strikes 1 | . . . . . . . . . . 1 . . . . . Average Slot Usage (%) 96 | . 100 100 99 100 99 99 99 99 99 93 83 72 96 100 99 Engine 4 | . 12 12 12 6 3 . 9 8 2 . 2 . . . . Core 5 | . . . . 5 12 13 4 3 8 8 1 . . . . Reactor 1 | . . . . . . . . . . 1 4 5 10 10 9 Treads 20 | . 23 25 25 25 16 27 27 25 22 14 4 . 14 20 27 Device 16 | . 6 . . 11 19 20 14 15 16 14 20 21 30 28 24 Storage 7 | . 12 12 12 12 8 7 7 6 5 6 6 . . 1 6 Processor 10 | . 5 12 12 12 8 7 7 6 11 11 14 15 15 15 11 Hackware 5 | . . . . . . . . 12 15 16 9 5 5 5 2 Protection 7 | . 12 12 11 . 12 7 13 8 4 9 2 5 10 10 9 Energy Gun 1 | . 2 5 . . . . . . . . 2 5 5 5 4 Energy Cannon 5 | . . . . . . 6 13 11 10 10 5 . . . . Ballistic Gun 7 | . 12 19 25 25 16 7 . . . . . 4 5 5 4 Naked Turns . | . . . . . . . . . . . . . . . . Heaviest Build 105 | 19 22 20 50 50 76 82 87 92 84 105 103 65 64 79 97 Greatest Support 170 | 40 40 40 40 40 40 100 106 116 110 135 33 30 112 112 170 Greatest Overweight (x) 6 | . 4 . 1 1 1 1 . 1 1 5 6 3 2 . . Average Overweight (x) . | . . . . 1 1 . . . . . 1 1 . . . Largest Inventory Capacity 20 | 10 10 10 20 20 20 20 20 20 20 20 20 5 5 15 15 Average Capacity 17 | 9 10 10 18 20 20 20 20 20 20 20 16 5 5 8 15 Most Carried 20 | 3 7 10 14 15 20 20 20 20 20 20 14 5 5 10 13 Average Carried 14 | 1 3 8 11 14 14 19 18 19 18 15 9 4 4 6 10 Final Capacity 20 | 10 10 10 20 20 20 20 20 20 20 20 5 5 5 15 15 Final Carried 19 | 3 5 10 13 15 16 18 19 19 19 11 5 5 5 10 12 Class Distribution -------------------- 65% | Hacker-Mutant 14% | Scavenger-Mutant 9% | Scavenger-Skirmisher 7% | Hacker-Skirmisher Dominant Class ---------------- Hacker-Mutant | -10/Materials Hacker-Mutant | -10/Mines Hacker-Mutant | -10/Exiles Hacker-Skirmisher | -9/Mines Scavenger-Skirmisher | -8/Materials Hacker-Mutant | -7/Factory Hacker-Mutant | -7/Storage Hacker-Mutant | -6/Factory Hacker-Mutant | -5/Factory Hacker-Mutant | -4/Factory Hacker-Mutant | -4/Extension Hacker-Mutant | -4/Cetus Scavenger-Mutant | -4/Archives Scavenger-Mutant | -4/Hub_04(d) Scavenger-Mutant | -3/Research Resources | -11 -10 -10 -10 -9 -8 -7 -7 -6 -5 -4 -4 -4 -4 -4 -3 ----------- Run | Yrd Mat Min Exi Min Mat Fac Sto Fac Fac Fac Ext Cet Arc Hub Res Matter Collected 3980 | 236 218 153 . 145 476 762 124 176 202 207 625 218 94 53 291 Remotely 395 | . . . . . . . . . . . 158 . . . 237 Salvage Created 10683 | 82 164 261 . 47 655 1467 1076 1073 1888 2061 951 33 . 598 327 Parts 428 | 8 15 13 . . 28 85 38 51 70 62 28 . . 21 9 Haulers Intercepted 15 | . . . . . 1 4 2 1 3 . 1 . . 1 2 Recyclers Shooed 9 | 1 . . . . . . . 1 5 1 . . . . 1 Parts Field Recycled . | . . . . . . . . . . . . . . . . Retrieved Matter . | . . . . . . . . . . . . . . . . Parts Self-Destructed . | . . . . . . . . . . . . . . . . Prevented . | . . . . . . . . . . . . . . . . Kills | -11 -10 -10 -10 -9 -8 -7 -7 -6 -5 -4 -4 -4 -4 -4 -3 ------- Run | Yrd Mat Min Exi Min Mat Fac Sto Fac Fac Fac Ext Cet Arc Hub Res Combat Hostiles Destroyed 162 | . 5 7 . 3 14 28 16 16 23 27 14 . . 6 3 Guns 51 | . 4 7 . 3 14 12 . . . . 2 . . 6 3 Cannons 92 | . 1 . . . . 8 14 16 21 24 8 . . . . AOE 8 | . . . . . . 4 . . 2 . 2 . . . . Classes Destroyed 18 | 2 4 . . 1 2 7 . . . 1 . . . . 1 Worker 8 | 2 . . . . . 2 . . 2 1 . . . 1 . Builder 6 | . . . . . . 3 . . 1 1 1 . . . . Tunneler 3 | 1 . . . . . . . 1 . . 1 . . . . Hauler 15 | . . . . . 1 4 2 1 3 . 1 . . 1 2 Recycler 8 | . 1 . . . . . 1 . 4 . 1 . . 1 . Operator 7 | . . . . . . 1 . 1 . 1 1 . . 2 1 Watcher 15 | . 2 . . . . 3 . 5 . 3 1 1 . . . Swarmer 33 | . 3 2 . . 2 6 . 4 7 . 7 . . 1 1 Grunt 70 | . 2 5 . . 9 8 10 7 12 12 3 . . 2 . Brawler 1 | . . . . . . . . . . 1 . . . . . Duelist 1 | . . . . . . 1 . . . . . . . . . Sentry 18 | . . . . . . 2 6 3 1 3 2 . . 1 . Demolisher 1 | . . . . . . . . . . . . . . . 1 Specialist 2 | . . . . . . 2 . . . . . . . . . Hunter 13 | . . . . . 3 5 . . . 4 . . . . 1 Programmer 19 | . . . . . . 3 . 2 3 7 2 . . 2 . Heavy 1 | . . . . . . 1 . . . . . . . . . Assembled 3 | . . . . 3 . . . . . . . . . . . Guerrilla 1 | . . . . . . . . . . . 1 . . . . Best Kill Streak 8 | 2 4 4 . 2 6 7 6 7 8 5 4 1 . 4 2 Combat Bots Only 6 | . 3 4 . 2 3 6 6 6 5 5 3 . . 2 1 Max Kills in Single Turn 3 | 1 1 1 . 1 2 3 1 1 2 1 2 1 . 1 1 Gunslinging 1 | . . . . . 1 1 . . . . . . . . . Exploded 2 | . . . . . . 2 . . 2 . 1 . . . . Melee . | . . . . . . . . . . . . . . . . Uniques/NPCs Destroyed . | . . . . . . . . . . . . . . . . Combat | -11 -10 -10 -10 -9 -8 -7 -7 -6 -5 -4 -4 -4 -4 -4 -3 -------- Run | Yrd Mat Min Exi Min Mat Fac Sto Fac Fac Fac Ext Cet Arc Hub Res Hostile Shots Fired 1675 | . 43 29 . 23 207 251 211 131 127 311 196 15 2 34 95 Missed 514 | . 16 6 . 6 51 80 66 68 46 77 51 5 . 6 36 Damage Taken 11462 | . 150 173 . 186 1474 1634 734 681 831 2539 1891 162 23 245 739 Core 1172 | . 19 39 . 32 102 133 67 60 67 220 359 32 . 8 34 Absorbed by Shields 1079 | . . . . . . 207 . . . 570 104 41 . . 157 Reduced by Siege Mode 45 | . . . . . . . . . . 45 . . . . . Redirected to Shielding 20 | . . . . . . . . . . . 20 . . . . Ignored by Resistances 8039 | . 108 110 . 114 894 1133 520 426 617 1845 1165 119 28 378 582 Regen/Repaired (Parts) 187 | . . . . . . . . 167 . 20 . . . . . Core Remaining (%) 78 | 100 . . . 64 81 . 71 92 93 . . . . 46 . Volleys Fired 626 | 4 19 23 . 9 77 92 54 50 60 96 62 19 1 18 42 Largest 2 | 2 2 2 . 2 2 2 2 2 2 2 2 2 2 2 2 Hottest 175 | 120 120 60 . 40 48 124 110 60 69 65 175 123 115 115 115 Shots Fired 1190 | 6 22 47 . 18 154 185 108 100 120 190 106 23 2 34 75 Gun 492 | 4 19 47 . 18 154 98 . . . . 21 20 2 34 75 Cannon 676 | . . . . . . 83 108 100 117 190 78 . . . . Launcher 17 | . . . . . . 4 . . 3 . 7 3 . . . Special 5 | 2 3 . . . . . . . . . . . . . . Kinetic 400 | 4 19 41 . 18 154 101 . . . . . 4 1 16 42 Thermal 767 | 2 3 . . . . 80 108 100 117 190 99 16 1 18 33 Explosive 17 | . . . . . . 4 . . 3 . 7 3 . . . Electromagnetic 6 | . . 6 . . . . . . . . . . . . . Robot Hit Streak 61 | 4 12 35 . 7 30 32 34 61 30 35 47 13 6 15 16 Robot Miss Streak 5 | . 4 2 . 1 2 3 1 2 2 2 5 1 . 2 2 Penetration Max 1 | . . . . . . 1 . . . . . . . 1 1 Secondary Targets 11 | . . 1 . 1 6 2 . . . . . . . 1 . Max Gunslinging Chain 1 | . . 1 . 1 1 1 . . . . . . . 1 . Shots Hit Robots 961 | 4 16 39 . 14 137 150 91 68 95 166 83 13 2 24 59 Core Hits 426 | 4 10 14 . 7 54 62 33 36 60 65 34 12 1 15 19 Critical Kills 6 | . . . . . . 2 . . . 2 1 . . 1 . Critical Parts Destroyed 4 | . 1 . . . 1 . . . . . . 1 . 1 . Critical Strikes 12 | . 1 . . . 1 2 . . . 2 1 1 . 2 2 Meltdown 5 | . . . . . . 2 . . . 2 1 . . . . Destroy 7 | . 1 . . . 1 . . . . . . 1 . 2 2 Melee Attacks . | . . . . . . . . . . . . . . . . Impact . | . . . . . . . . . . . . . . . . Slashing . | . . . . . . . . . . . . . . . . Piercing . | . . . . . . . . . . . . . . . . Sneak Attacks . | . . . . . . . . . . . . . . . . Combat Hostiles . | . . . . . . . . . . . . . . . . Follow-up Attacks . | . . . . . . . . . . . . . . . . Damage Inflicted 26957 | 54 246 458 . 178 1265 4399 2540 2251 3978 5190 3417 686 70 824 1401 Guns 6657 | 54 174 458 . 173 1254 1719 . . . . 234 296 70 824 1401 Cannons 17305 | . . . . . . 1824 2525 1971 3252 5181 2552 . . . . Explosions 2631 | . . . . . . 796 . 231 611 . 603 390 . . . Melee . | . . . . . . . . . . . . . . . . Ramming 292 | . . . . 5 11 60 15 49 115 9 28 . . . . Kinetic 5044 | 54 174 415 . 173 1254 1795 . . . . . 80 28 352 719 Thermal 18947 | . 72 . . . . 1748 2525 1971 3252 5181 2786 216 42 472 682 Explosive 2631 | . . . . . . 796 . 231 611 . 603 390 . . . Electromagnetic 43 | . . 43 . . . . . . . . . . . . . Impact . | . . . . . . . . . . . . . . . . Slashing . | . . . . . . . . . . . . . . . . Piercing . | . . . . . . . . . . . . . . . . Highest Corruption 11 | . 1 1 1 1 . 2 2 . 1 10 10 10 10 11 . Average Corruption 4 | . 1 1 1 1 . 1 2 . 1 3 10 10 10 10 . Corruption Purged . | . . . . . . . . . . . . . . . . Corruption Blocked . | . . . . . . . . . . . . . . . . Effects 161 | . . 4 7 6 . 5 5 . 5 17 61 19 8 24 . Message Errors 37 | . . 1 3 . . 2 1 . 2 6 11 3 1 7 . Matter Fused 33 | . . 1 1 3 . . 1 . 2 3 14 3 2 3 . Heat Flow Errors 19 | . . 1 1 . . . . . . 2 7 4 2 2 . Energy Discharges 21 | . . . 1 3 . 1 2 . . 1 7 4 1 1 . Parts Rejected 2 | . . . . . . . . . . . 1 1 . . . Data Loss (minor) 22 | . . . 1 . . . 1 . 1 1 11 2 . 5 . Data Loss (major) 7 | . . . . . . . . . . 2 3 . 1 1 . Misfires 7 | . . 1 . . . 1 . . . . 2 2 . 1 . Alerts 2 | . . . . . . 1 . . . . . . . 1 . Misdirections 3 | . . . . . . . . . . . 2 . 1 . . Weapon Failures 8 | . . . . . . . . . . 2 3 . . 3 . Overload Shots . | . . . . . . . . . . . . . . . . Overflow Damage 508 | . . . . . . 93 15 62 95 119 124 . . . . Projectiles 396 | . . . . . . 35 15 34 82 119 111 . . . . Explosions 112 | . . . . . . 58 . 28 13 . 13 . . . . Melee . | . . . . . . . . . . . . . . . . Knockbacks 3 | . . . . . . . . 1 1 . 1 . . . . Impact 3 | . . . . . . . . 1 1 . 1 . . . . Kinetic . | . . . . . . . . . . . . . . . . Secondary . | . . . . . . . . . . . . . . . . Self-Inflicted Damage 168 | . . . . . . 35 . 120 . . 13 . . . . Shots 6 | . . . . . . 3 . 3 . . . . . . . Rammed 28 | . 2 . . 3 1 3 2 4 10 1 2 . . . . Targets Rammed 35 | . 2 . . 3 1 5 3 5 11 3 2 . . . . Kicked . | . . . . . . . . . . . . . . . . Crushed 7 | . . . . . . 2 1 1 1 2 . . . . . Highest Temperature 630 | 40 54 237 232 . 105 96 108 78 5 253 630 263 212 119 4 Average Temperature 69 | 22 25 108 118 . 29 24 33 33 3 98 146 85 82 29 4 Received Heat Transfer 3530 | . 42 189 . . 918 307 456 235 369 562 284 . 9 135 24 Effects 10 | . . . 1 . . . . . . . 9 . . . . Shutdowns 2 | . . . . . . . . . . . 2 . . . . Energy Bleed 3 | . . . 1 . . . . . . . 2 . . . . Interference 1 | . . . . . . . . . . . 1 . . . . Matter Decay 1 | . . . . . . . . . . . 1 . . . . Damage (minor) 2 | . . . . . . . . . . . 2 . . . . Damage (major) 1 | . . . . . . . . . . . 1 . . . . Siege Activations 3 | . . . . . . . . . . 3 . . . . . Total Turns 66 | . . . . . . . . . . 66 . . . . . Longest Duration 26 | . . . . . . . . . . 26 . . . . . Robots Corrupted . | . . . . . . . . . . . . . . . . Combat Hostiles . | . . . . . . . . . . . . . . . . Parts Fried . | . . . . . . . . . . . . . . . . Impact Corruptions . | . . . . . . . . . . . . . . . . Robots Melted 14 | . . . . . . 4 2 . 1 4 3 . . . . Combat Hostiles 11 | . . . . . . 4 2 . . 3 2 . . . . Parts Melted 87 | . . . . . . 6 16 12 4 36 13 . . . . Heat Transferred 25283 | . 150 . . . . 2962 3699 2516 3700 6632 3922 296 37 555 814 Parts Sabotaged . | . . . . . . . . . . . . . . . . Parts Stolen . | . . . . . . . . . . . . . . . . Parts Stripped . | . . . . . . . . . . . . . . . . Power Chain Reactions . | . . . . . . . . . . . . . . . . Alert | -11 -10 -10 -10 -9 -8 -7 -7 -6 -5 -4 -4 -4 -4 -4 -3 ------- Run | Yrd Mat Min Exi Min Mat Fac Sto Fac Fac Fac Ext Cet Arc Hub Res Peak Influence 560 | 15 246 205 . . 202 275 560 494 453 348 343 214 161 296 119 Initial 121 | . 7 4 . . . 43 88 111 . 31 121 94 25 38 47 Average 112 | 4 62 108 . . 91 82 261 129 188 141 129 154 133 145 46 Maximum Alert Level 2 | . 1 1 . . 1 1 2 2 2 1 1 1 . 1 . Low Security (%) 79 | 100 93 72 . 100 89 93 37 67 55 72 72 99 100 54 100 Level 1 18 | . 6 27 . . 10 6 45 25 40 27 27 . . 45 . Level 2 2 | . . . . . . . 16 7 3 . . . . . . Level 3 . | . . . . . . . . . . . . . . . . Level 4 . | . . . . . . . . . . . . . . . . Level 5 . | . . . . . . . . . . . . . . . . High Security . | . . . . . . . . . . . . . . . . Max Security . | . . . . . . . . . . . . . . . . Squads Dispatched 49 | . . 1 . . 3 14 3 9 4 4 3 . . 4 4 Investigation 13 | . . 1 . . 1 4 2 3 . . 1 . . . 1 Extermination 12 | . . . . . . 3 . 5 1 2 . . . 1 . Reinforcement 24 | . . . . . 2 7 1 1 3 2 2 . . 3 3 Assault . | . . . . . . . . . . . . . . . . Garrison . | . . . . . . . . . . . . . . . . Intercept . | . . . . . . . . . . . . . . . . Searches Triggered . | . . . . . . . . . . . . . . . . Construction Impeded 4 | . . . . . . 2 . . 1 . 1 . . . . Haulers Reinforced 9 | . . . . . . 2 1 . 2 1 . . . . 3 Active Scanning Responses . | . . . . . . . . . . . . . . . . Cargo Convoy Interrupts 1 | . . . . . . 1 . . . . . . . . . Stealth | -11 -10 -10 -10 -9 -8 -7 -7 -6 -5 -4 -4 -4 -4 -4 -3 --------- Run | Yrd Mat Min Exi Min Mat Fac Sto Fac Fac Fac Ext Cet Arc Hub Res Distress Signals 16 | . . . . . 4 . 1 3 1 1 . 2 . . 4 Communications Jammed 128 | . . . . . . . . . . 22 63 42 . . 1 Distress Signals 128 | . . . . . . . . . . 22 63 42 . . 1 Times Spotted 282 | . 12 7 . 7 21 37 19 23 26 40 40 11 3 14 22 Peak Tracking Total 7 | . 5 4 . 4 7 5 7 4 6 5 7 5 1 4 3 Tactical Retreats 13 | . 5 . . . . . . . 1 . 6 . . 1 . Traps | -11 -10 -10 -10 -9 -8 -7 -7 -6 -5 -4 -4 -4 -4 -4 -3 ------- Run | Yrd Mat Min Exi Min Mat Fac Sto Fac Fac Fac Ext Cet Arc Hub Res Traps Triggered 27 | . 1 . . . 1 7 1 6 1 2 8 . . . . Indirectly . | . . . . . . . . . . . . . . . . Trap Hack Attempts . | . . . . . . . . . . . . . . . . Triggered . | . . . . . . . . . . . . . . . . Disarmed . | . . . . . . . . . . . . . . . . Reprogrammed . | . . . . . . . . . . . . . . . . Reused 1 | . . . . . . . . . . . 1 . . . . Traps Reconfigurated 6 | . . . . . . . . . . 1 5 . . . . Traps Extracted . | . . . . . . . . . . . . . . . . Installed . | . . . . . . . . . . . . . . . . Triggered 3 | . . . . . . 2 . . . . 1 . . . . Machines | -11 -10 -10 -10 -9 -8 -7 -7 -6 -5 -4 -4 -4 -4 -4 -3 ---------- Run | Yrd Mat Min Exi Min Mat Fac Sto Fac Fac Fac Ext Cet Arc Hub Res Machines Disabled 22 | . . . . . 1 . 1 8 . 3 2 1 1 5 . Max in Single Turn 4 | . . . . . 1 . 1 4 . 1 . 1 1 1 . Garrison Access 1 | . . . . . . . . . . 1 . . . . . Machines Repaired . | . . . . . . . . . . . . . . . . Machines Dismantled . | . . . . . . . . . . . . . . . . Machines Sabotaged . | . . . . . . . . . . . . . . . . Overloaded Fab Kills . | . . . . . . . . . . . . . . . . Hacking | -11 -10 -10 -10 -9 -8 -7 -7 -6 -5 -4 -4 -4 -4 -4 -3 --------- Run | Yrd Mat Min Exi Min Mat Fac Sto Fac Fac Fac Ext Cet Arc Hub Res Machines Accessed 59 | . 3 1 3 . 1 10 4 13 2 4 10 1 1 2 4 Terminals 42 | . 2 1 . . 1 7 4 8 2 2 10 1 . 2 2 Fabricators 6 | . . . . . . 2 . 2 . . . . . . 2 Repair Stations 3 | . . . . . . . . 2 . 1 . . . . . Recycling Units 1 | . 1 . . . . . . . . . . . . . . Scanalyzers . | . . . . . . . . . . . . . . . . Garrison Access 3 | . . . . . . 1 . 1 . 1 . . . . . Total Hacks 151 | . 6 3 6 . 6 17 11 33 7 7 28 3 8 5 11 Successful 84 | . 6 2 6 . 3 5 4 18 6 4 14 1 8 2 5 Failed 67 | . . 1 . . 3 12 7 15 1 3 14 2 . 3 6 Catastrophic 17 | . . 1 . . . 4 2 3 . 1 5 . . . 1 Database Lockouts . | . . . . . . . . . . . . . . . . Manual 56 | . . 2 1 . 6 5 2 16 9 2 9 2 1 . 1 Terminals 113 | . 3 3 . . 6 13 11 23 7 3 28 3 . 5 8 Fabricators 8 | . . . . . . 3 . 2 . . . . . . 3 Repair Stations 7 | . . . . . . . . 5 . 2 . . . . . Recycling Units 3 | . 3 . . . . . . . . . . . . . . Scanalyzers . | . . . . . . . . . . . . . . . . Garrison Access 6 | . . . . . . 1 . 3 . 2 . . . . . Terminal Hacks 66 | . 3 2 6 . 3 3 4 11 6 1 14 1 8 2 2 Record 20 | . 1 . 6 . . . . 1 . . 2 . 8 1 1 Part Schematic 3 | . . . . . . . . . 2 . 1 . . . . Robot Analysis 1 | . 1 . . . . . . . . . . . . . . Prototype ID Bank 3 | . . . . . . . 1 2 . . . . . . . Open Door 8 | . . . . . . . 1 . . . 6 1 . . . Open DSF 1 | . . . . . . . . . . 1 . . . . . Level Access Points 5 | . . . . . . 1 1 1 1 . 1 . . . . Branch Access Points 8 | . . 1 . . 1 1 1 1 1 . 1 . . . 1 Emergency Access Points 1 | . . . . . . . . 1 . . . . . . . Alert Level 4 | . . . . . 1 1 . 1 . . 1 . . . . Unreport Threat 1 | . . . . . 1 . . . . . . . . . . Dispatch Records 1 | . . 1 . . . . . . . . . . . . . Patrol Status 1 | . 1 . . . . . . . . . . . . . . Assault Status 1 | . . . . . . . . . . . . . . 1 . Recall Investigation 1 | . . . . . . . . 1 . . . . . . . Recall Extermination 2 | . . . . . . . . 2 . . . . . . . Hauler Manifests 4 | . . . . . . . . 1 2 . 1 . . . . Registered Components 1 | . . . . . . . . . . . 1 . . . . Fabricator Hacks 6 | . . . . . . 1 . 2 . . . . . . 3 Network Status 5 | . . . . . . 1 . 2 . . . . . . 2 Build 1 | . . . . . . . . . . . . . . . 1 Repair Station Hacks 6 | . . . . . . . . 4 . 2 . . . . . Scan Component 3 | . . . . . . . . 2 . 1 . . . . . Repair 3 | . . . . . . . . 2 . 1 . . . . . Recycling Unit Hacks 3 | . 3 . . . . . . . . . . . . . . Recycle Component 1 | . 1 . . . . . . . . . . . . . . Process 1 | . 1 . . . . . . . . . . . . . . Retrieve Components 1 | . 1 . . . . . . . . . . . . . . Scanalyzer . | . . . . . . . . . . . . . . . . Garrison Access Hacks 1 | . . . . . . . . . . 1 . . . . . Seal Access 1 | . . . . . . . . . . 1 . . . . . Unauthorized Hacks 2 | . . . . . . 1 . 1 . . . . . . . Terminals . | . . . . . . . . . . . . . . . . Fabricators . | . . . . . . . . . . . . . . . . Repair Stations . | . . . . . . . . . . . . . . . . Recycling Units . | . . . . . . . . . . . . . . . . Scanalyzers . | . . . . . . . . . . . . . . . . Garrison Access 2 | . . . . . . 1 . 1 . . . . . . . Reprogram 2 | . . . . . . 1 . 1 . . . . . . . Data Cores Recovered 1 | . . . . . . 1 . . . . . . . . . Used 1 | . . . . . . 1 . . . . . . . . . Hacking Detections 38 | . 1 1 . . 1 10 4 7 1 2 6 1 . 2 2 Full Trace Events 9 | . . 1 . . 1 3 2 1 . . 1 . . . . Feedback Events . | . . . . . . . . . . . . . . . . Feedback Blocked . | . . . . . . . . . . . . . . . . Robot Schematics Acquired . | . . . . . . . . . . . . . . . . Robots Built . | . . . . . . . . . . . . . . . . Authchips . | . . . . . . . . . . . . . . . . Time . | . . . . . . . . . . . . . . . . Total Robot Build Rating . | . . . . . . . . . . . . . . . . Part Schematics Acquired 3 | . . . . . . . . . 2 . 1 . . . . Parts Built 2 | . . . . . . . . . . . . . . . 2 Authchips . | . . . . . . . . . . . . . . . . Time 128 | . . . . . . . . . . . . . . . 128 Total Part Build Rating 16 | . . . . . . . . . . . . . . . 16 Parts Repaired 3 | . . . . . . . . 2 . 1 . . . . . Time 214 | . . . . . . . . 178 . 36 . . . . . Parts Recycled 1 | . 1 . . . . . . . . . . . . . . Recycled Matter 156 | . 156 . . . . . . . . . . . . . . Retrieved Matter . | . . . . . . . . . . . . . . . . Retrieved Components . | . . . . . . . . . . . . . . . . Parts Scanalyzed . | . . . . . . . . . . . . . . . . Part Schematics Acquired . | . . . . . . . . . . . . . . . . Parts Damaged . | . . . . . . . . . . . . . . . . Bothacking | -11 -10 -10 -10 -9 -8 -7 -7 -6 -5 -4 -4 -4 -4 -4 -3 ------------ Run | Yrd Mat Min Exi Min Mat Fac Sto Fac Fac Fac Ext Cet Arc Hub Res Used RIF Installer . | . . . . . . . . . . . . . . . . Robots Hacked . | . . . . . . . . . . . . . . . . Non-combat . | . . . . . . . . . . . . . . . . Combat . | . . . . . . . . . . . . . . . . Robot Hacks Applied . | . . . . . . . . . . . . . . . . Relay Couplers Released . | . . . . . . . . . . . . . . . . Fabnet Peak Effective % . | . . . . . . . . . . . . . . . . Robots Rewired . | . . . . . . . . . . . . . . . . Allies Hacked 1 | . . . . . . 1 . . . . . . . . . Hacks Repelled . | . . . . . . . . . . . . . . . . Allies | -11 -10 -10 -10 -9 -8 -7 -7 -6 -5 -4 -4 -4 -4 -4 -3 -------- Run | Yrd Mat Min Exi Min Mat Fac Sto Fac Fac Fac Ext Cet Arc Hub Res Total Allies 19 | . . . . . . 2 . 3 . . 9 5 . . . Largest Group 6 | . . . . . . 2 . 3 . . 4 6 4 3 . Highest-Rated Group 623 | . . . . . . 49 . 87 . . 273 623 422 279 . Highest-Rated Ally 159 | . . . . . . 37 . 29 . . 159 159 143 96 . Total Orders . | . . . . . . . . . . . . . . . . Ally Attacks 164 | . . . . . . 7 . 19 . . 39 45 17 37 . Total Damage 4906 | . . . . . . 167 . 169 . . 973 1627 564 1406 . Kills 31 | . . . . . . 1 . 3 . . 7 9 4 7 . Allies Corrupted . | . . . . . . . . . . . . . . . . Allies Melted . | . . . . . . . . . . . . . . . . Intel | -11 -10 -10 -10 -9 -8 -7 -7 -6 -5 -4 -4 -4 -4 -4 -3 ------- Run | Yrd Mat Min Exi Min Mat Fac Sto Fac Fac Fac Ext Cet Arc Hub Res Robot Analysis Total 1 | . 1 . . . . . . . . . . . . . . Derelict Logs Recovered . | . . . . . . . . . . . . . . . . Drone Launches . | . . . . . . . . . . . . . . . . Drone Recoveries . | . . . . . . . . . . . . . . . . Exploration | -11 -10 -10 -10 -9 -8 -7 -7 -6 -5 -4 -4 -4 -4 -4 -3 ------------- Run | Yrd Mat Min Exi Min Mat Fac Sto Fac Fac Fac Ext Cet Arc Hub Res Turns Passed 13980 | 112 549 326 1105 765 757 2314 492 2016 823 1184 1416 546 206 544 825 Spaces Moved 6794 | 60 277 153 502 303 177 1271 194 1039 384 514 930 239 107 303 341 Core 13 | 13 . . . . . . . . . . . . . . . Treads 5587 | 47 264 153 502 303 177 1271 194 1039 384 483 37 . 89 303 341 Legs . | . . . . . . . . . . . . . . . . Wheels 446 | . . . . . . . . . . 31 415 . . . . Hover . | . . . . . . . . . . . . . . . . Flight 748 | . 13 . . . . . . . . . 478 239 18 . . Fastest Speed 24 | 50 160 160 160 240 240 152 152 156 152 150 24 37 160 160 157 Average Speed 158 | 136 170 160 218 240 243 152 153 156 153 156 105 121 176 160 157 Slowest Speed 380 | 160 380 160 240 240 245 235 156 235 232 190 320 280 320 160 160 Overloaded Moves 50 | . . . . . . . . . . . 50 . . . . Propulsion Burnouts . | . . . . . . . . . . . . . . . . Robots Hopped 19 | . . . . . . . . . . . 19 . . . . Cave-ins Triggered . | . . . . . . . . . . . . . . . . Exploration Rate (%) 44 | 4 41 27 78 65 27 44 48 35 12 19 92 89 88 34 14 Regions Visited 15 Branch Regions 8 Pre-discovered Areas 1 | . . . 1 . . . . . . . . . . . . Known Exits Taken 15 | 1 1 1 1 1 1 1 1 1 1 1 1 1 1 1 . Unknown Exits Taken . | . . . . . . . . . . . . . . . . Scrap Searched 1 | . . . . 1 . . . . . . . . . . . Spaces Dug 14 | . . . . . . . . 14 . . . . . . . Terrain Destroyed 290 | . . . . . . 21 10 99 35 9 54 52 . 6 4 Melee . | . . . . . . . . . . . . . . . . Projectile 72 | . . . . . . 3 10 19 13 9 7 1 . 6 4 AOE 218 | . . . . . . 18 . 80 22 . 47 51 . . . Terrain Rammed . | . . . . . . . . . . . . . . . . Walls Destroyed . | . . . . . . . . . . . . . . . . Machines Disabled . | . . . . . . . . . . . . . . . . Actions | -11 -10 -10 -10 -9 -8 -7 -7 -6 -5 -4 -4 -4 -4 -4 -3 --------- Run | Yrd Mat Min Exi Min Mat Fac Sto Fac Fac Fac Ext Cet Arc Hub Res Total 8782 | 80 328 190 511 320 370 1473 281 1328 489 703 1238 471 120 326 554 Wait 826 | . 3 2 . 2 69 26 8 194 10 48 115 190 2 . 157 Move 6749 | 59 276 152 501 302 176 1270 193 1038 383 513 899 238 106 302 341 Hop 11 | . . . . . . . . . . . 11 . . . . Pick Up 95 | 10 5 7 . 1 9 17 6 9 5 8 8 . 2 4 4 Fast Attach 76 | . . 2 3 . 1 9 4 8 4 6 20 13 4 1 1 Attach 85 | 7 11 . 1 1 10 8 3 3 7 15 13 2 . . 4 Detach 28 | . 10 . 4 1 2 2 1 . 2 1 2 3 . . . Swap 53 | . 1 . 1 1 14 16 2 8 4 3 1 . . . 2 Drop 111 | . 1 4 1 . 11 26 7 13 3 10 21 6 4 1 3 Fire 626 | 4 19 23 . 9 77 92 54 50 60 96 62 19 1 18 42 Melee . | . . . . . . . . . . . . . . . . Ram 4 | . 1 . . . . . . . . . 2 . 1 . . Kick . | . . . . . . . . . . . . . . . . Crush 32 | . 1 . . 3 1 5 3 5 11 3 . . . . . Escape Stasis 84 | . . . . . . . . . . . 84 . . . . Rewire 2 | . . . . . . 2 . . . . . . . . . Trap . | . . . . . . . . . . . . . . . . Miscellaneous . | . . . . . . . . . . . . . . . . Route ------- -11/Scrapyard -10/Materials (discovered 2 exits: *Min / Sub) -10/Mines -10/Exiles -9/Mines -8/Materials -7/Factory (discovered 8 exits: Fac x4 / *Sto x2 / Low x2) -7/Storage (discovered 2 exits: *Fac / Rec) -6/Factory (discovered 6 exits: *Fac x4 / Low x2) -5/Factory (discovered 6 exits: *Fac x4 / Upp x2) -4/Factory (discovered 2 exits: *Upp / *Ext) -4/Extension (discovered 3 exits: *Res x2 / *Cet) -4/Cetus (discovered 2 exits: *Res / *Arc) -4/Archives (discovered 3 exits: *Res / *Hub x2) -4/Hub_04(d) -3/Research (discovered 3 exits: Arm / Tes x2) History --------- Turn | Location | Event 9 | -11/Scrapyard | Identified exit to Materials 9 | -11/Scrapyard | Discovered exit to Materials (range 15) 113 | -11/Scrapyard | Entered Materials 113 | -10/Materials | Identified exit to Subcaves 113 | -10/Materials | Discovered exit to Subcaves (range 13) 113 | -10/Materials | Evolved 1 slot: Utility x1 305 | -10/Materials | Build established: Hacker-Mutant 487 | -10/Materials | Identified exit to Mines 487 | -10/Materials | Discovered exit to Mines (range 12) 662 | -10/Materials | Entered Mines 981 | -10/Mines | Deemed a non-threat by the Exiles lab entrance 981 | -10/Mines | Identified exit to Exiles 981 | -10/Mines | Discovered exit to Exiles (range 5) 988 | -10/Mines | Entered Exiles 1027 | -10/Exiles | Met 8R-AWN 1054 | -10/Exiles | Met EX-HEX 1120 | -10/Exiles | Met EX-DEC 1129 | -10/Exiles | Learned location of Zion (-7) 1243 | -10/Exiles | Identified exit to Mines 1243 | -10/Exiles | Discovered exit to Mines (range 14) 1411 | -10/Exiles | Met EX-BIN 1605 | -10/Exiles | Aligned with FarCom system 1608 | -10/Exiles | Given EX-Vault access code 1663 | -10/Exiles | Opened EX-Vault 1675 | -10/Exiles | Found Prototype Device 1675 | -10/Exiles | Identified PSU Rigger 1680 | -10/Exiles | Found Prototype Device 1680 | -10/Exiles | Identified Cloak of Protection 1689 | -10/Exiles | Found Prototype Device 1689 | -10/Exiles | Identified Trap Reconfigurator 1745 | -10/Exiles | Warned to stay clear of 0b10 Research branches 1909 | -10/Exiles | Visited The Gauntlet 2093 | -10/Exiles | Stole three prototypes: Cloak of Protection, Trap Reconfigurator, PSU Rigger 2093 | -10/Exiles | Entered Mines 2110 | -9/Mines | Found a damaged Exp. Sensor Array with a note attached 2115 | -9/Mines | Found Prototype Device 2117 | -9/Mines | Identified Exp. Sensor Array 2356 | -9/Mines | Assembled infested the area 2384 | -9/Mines | Found a hidden stash of uninstalled traps 2404 | -9/Mines | Build established: Hacker-Skirmisher 2846 | -9/Mines | Identified exit to Materials 2846 | -9/Mines | Discovered exit to Materials (range 8) 2858 | -9/Mines | Entered Materials 2858 | -8/Materials | Evolved 4 slots: Power x1, Utility x3 3483 | -8/Materials | Build established: Scavenger-Skirmisher 3531 | -8/Materials | Identified exit to Factory 3531 | -8/Materials | Discovered exit to Factory (range 16) 3615 | -8/Materials | Entered Factory 3615 | -7/Factory | Evolved 2 slots: Propulsion x2 3617 | -7/Factory | FarCom data flow suspended 3833 | -7/Factory | Identified exit to Factory 4473 | -7/Factory | Cargo convoy interrupted 4814 | -7/Factory | P-60 Hacker assimilated hostile S-27 Virus 5132 | -7/Factory | Identified exit to Storage 5132 | -7/Factory | Identified exit to Lower Caves 5177 | -7/Factory | Build established: Hacker-Mutant 5929 | -7/Factory | Entered Storage 6033 | -7/Storage | Identified exit to Recycling 6421 | -7/Storage | Entered Factory 6421 | -6/Factory | Evolved 2 slots: Utility x2 6847 | -6/Factory | Identified exit to Lower Caves 6901 | -6/Factory | Identified exit to Factory 7033 | -6/Factory | Repaired Cld. Particle Cannon 8339 | -6/Factory | Repaired Exp. Sensor Array 8437 | -6/Factory | Entered another Factory area 8437 | -5/Factory | Evolved 2 slots: Utility x2 8586 | -5/Factory | Identified exit to Upper Caves 8586 | -5/Factory | Identified exit to Factory 9260 | -5/Factory | Entered another Factory area 9260 | -4/Factory | Evolved 2 slots: Utility x2 9358 | -4/Factory | Repaired Exp. Sensor Array 9429 | -4/Factory | Identified exit to DSF 9450 | -4/Factory | Identified exit to Upper Caves 9450 | -4/Factory | Discovered exit to Upper Caves (range 13) 9549 | -4/Factory | Build established: Wizard-Mutant 9911 | -4/Factory | Build established: Hacker-Mutant 10102 | -4/Factory | Lost 3 parts (1n1u1w) 10266 | -4/Factory | Lost 3 parts (1p1n1u) 10340 | -4/Factory | System corruption reached 10% 10407 | -4/Factory | Identified exit to Extension 10407 | -4/Factory | Discovered exit to Extension (range 19) 10444 | -4/Factory | Entered Extension 10534 | -4/Extension | Rescued a captive Derelict 10535 | -4/Extension | Rescued a captive Derelict 10662 | -4/Extension | Identified exit to Research 10872 | -4/Extension | Identified exit to Cetus 10940 | -4/Extension | Rescued a captive Derelict 11037 | -4/Extension | Spotted B-86 Titan 11072 | -4/Extension | Rescued a captive Derelict 11073 | -4/Extension | Rescued a captive Derelict 11092 | -4/Extension | Spotted B-86 Titan 11176 | -4/Extension | Lost 9 parts (1p1n5u2w) 11369 | -4/Extension | Disrupted transfer network 11742 | -4/Extension | Rescued A7 11743 | -4/Extension | Rescued a captive Derelict 11761 | -4/Extension | Rescued a captive Derelict 11761 | -4/Extension | Rescued a captive Derelict 11762 | -4/Extension | Core integrity fell below 50% 11860 | -4/Extension | Entered Cetus 11860 | -4/Cetus | Accompanied by 4 allies (A7) 11865 | -4/Cetus | Acquired a Cetus Manufacturing Module code from A7 11866 | -4/Cetus | Spotted Cetus Guard 11866 | -4/Cetus | Spotted Cetus Guard 11869 | -4/Cetus | Spotted Cetus Guard 11869 | -4/Cetus | Spotted Cetus Guard 11880 | -4/Cetus | Allies destroyed Cetus Guard 11887 | -4/Cetus | Allies destroyed Cetus Guard 11889 | -4/Cetus | Allies destroyed Cetus Guard 11906 | -4/Cetus | Allies destroyed Cetus Guard 11929 | -4/Cetus | Lost 3 allies 11980 | -4/Cetus | Escorted A7 to Cetus Mainframe 12069 | -4/Cetus | Started Cetus Manufacturing Module 12094 | -4/Cetus | Manufactured an Enhanced Grunt 12119 | -4/Cetus | Manufactured an Enhanced Grunt 12144 | -4/Cetus | Manufactured an Enhanced Grunt 12169 | -4/Cetus | Manufactured an Enhanced Grunt 12194 | -4/Cetus | Manufactured an Enhanced Grunt 12262 | -4/Cetus | Identified exit to Archives 12262 | -4/Cetus | Discovered exit to Archives (range 19) 12289 | -4/Cetus | Spotted Cetus Guard 12290 | -4/Cetus | Spotted Cetus Guard 12293 | -4/Cetus | Spotted Cetus Guard 12293 | -4/Cetus | Spotted Cetus Guard 12306 | -4/Cetus | Allies destroyed Cetus Guard 12310 | -4/Cetus | Allies destroyed Cetus Guard 12312 | -4/Cetus | Allies destroyed Cetus Guard 12315 | -4/Cetus | Allies destroyed Cetus Guard 12319 | -4/Cetus | Found Prototype Device 12319 | -4/Cetus | Identified Exp. Thermal Shield 12336 | -4/Cetus | Discovered exit to Research (range 19) 12406 | -4/Cetus | Entered Archives 12406 | -4/Archives | Accompanied by 4 allies (A7) 12412 | -4/Archives | Received a hacking code to weaken MAIN.C 12480 | -4/Archives | Discovered exit to Research (range 15) 12501 | -4/Archives | Unable to access archive contents 12507 | -4/Archives | Identified exit to Hub_04(d) 12507 | -4/Archives | Discovered exit to Hub_04(d) (range 17) 12522 | -4/Archives | Unable to access archive contents 12530 | -4/Archives | Discovered exit to Hub_04(d) (range 15) 12540 | -4/Archives | Unable to access archive contents 12612 | -4/Archives | Entered Hub_04(d) 12612 | -4/Hub_04(d) | Accompanied by 3 allies 12623 | -4/Hub_04(d) | Build established: Scavenger-Mutant 12953 | -4/Hub_04(d) | Discovered exit to Research (range 11) 13156 | -4/Hub_04(d) | Entered Research 13156 | -3/Research | Evolved 2 slots: Propulsion x2 13356 | -3/Research | Revision forces began assault on 0b10 13391 | -3/Research | Met up with Revision 17++ 13399 | -3/Research | Identified exit to Armory 13399 | -3/Research | Identified exit to Testing 13594 | -3/Research | Fabricated Imp. Remote Force Field (x2) 13611 | -3/Research | Spotted B-86 Titan 13856 | -3/Research | Research terminal network offline 13938 | -3/Research | Spotted Striker 13979 | -3/Research | Lost 3 allies 13981 | -3/Research | Self-destructed Last Messages --------------- 13969_ Penetrated by Slug. 13971_ Slug penetrates H-77 Assassin. 13972_ Penetrated by Slug. 13972_ Slug penetrates Wall. 13973_ The unstable cave ceiling collapses. 13975_ Acquired 53 matter. 13975_ Acquired 2 matter. 13975_ Acquired 6 matter. 13975_ Acquired 39 matter. 13975_ Acquired 53 matter. 13975_ Acquired 80 matter. 13975_ The unstable cave ceiling collapses. 13975_ Slug penetrates H-77 Assassin. 13975_ Penetrated by Slug. 13975_ Slug penetrates Earth. 13976_ Acquired 4 matter. 13977_ Penetrated by Slug. 13978_ The unstable cave ceiling collapses. 13979_ Penetrated by Slug. 13980_ Penetrated by Slug. Map ----- +----------------------------------------------------+ | ?????????????????????????????????????????????????? | | ?????????????????????????????????????????????????? | | ?????????????????????????????????????????????????? | | ?????????????????????????????????????????????????? | | ?????????????????????????????????????????????????? | | ?????????????????????????????????????????????????? | | ??????????????????????? ?????????????????????? | | ??????????????????????? ##???????????????????? | | ??????????????????? ##???????????????????? | | ???????????????? ##???????????????????? | | ????????????? # ##???????????????????? | | ??????????? ### ?????????????????? | | ?????????? ### ?????????????????? | | ?????????? # ?????????????????? | | ?????????? # ???????????????????? | | ???????????? ????????????????????? | | ???????????? ???????????????????? | | ????????? ? ##???????????????????? | | ?????????## """ ##???????????????????? | | ?????????## """ ##???????????????????? | | ?????????## """ ##???????????????????? | | ?????????## ########"T ??????????? | | ?????????## ########## ??????????? | | ??????????????## # """ # ??????????? | | ?????????????? # """ ##??????????? | | ??????????????? ## # @ # """ ##??????????? | | ??????????????? ## ##??????????? | | ??????????????? # ! ! ! ##??????????? | | ??????????????? + ##??????????? | | ??????????????? # h % ##??????????? | | ??????????????? + % ##??????????? | | ??????????????? ## h ##??????????? | | ??????????????? ## ## # % #####??????????? | | ????????????????## ##### # ####??????????? | | ????????????????## ##### ### # ##????????????? | | ?????????????##### ##### ### ########?????????? | | ?????????????#####+##### ###+########?????????? | | ?????????????## # # ##?????????? | | ?????????????## # g # ##?????????? | | ?????????????##"" # # "S ##?????????? | | ?????????????##"" # # """ % ###????????? | | ?????????????##"T ! + + " =###????????? | | ?????????????##"" # *!# [!%##????????? | | ?????????????##"" # =%# [###????????? | | ?????????????## # [!# ###????????? | | ??????????##### # ############?????????? | | ??????????############## # ] ###?????????? | | ?????????? ## # ##??????????? | | ???????????? ????## + "" ##??????????? | | ???????????? ????## # """##??????????? | +----------------------------------------------------+ Best States ------------- Heat Dissipation 81 Energy Generation 37 Energy Capacity 740 Matter Stores 300 Matter Capacity 300 Sight Range 20 Robot Scan Range 20 Terrain Scan Density 10 Jamming Range 16 Cloak Strength 5 Power Amplification 30 Armor Coverage 1350 Resistance: KI 35 Resistance: TH 65 Resistance: EX 35 Resistance: EM 35 Resistance: I 35 Resistance: S 35 Resistance: P 35 Core Shielding 30 Evasion (%) 64 Targeting Accuracy 8 Armor Integrity Analysis 30 Recoil Reduction 6 Particle Charging 25 Offensive Hacking 30 Defensive Hacking 32 Item Schematics ----------------- Cld. Plasma Cannon | -5/Factory | Hacked Hvy. Treads | -5/Factory | Hacked Adv. Phase Shifter | -4/Extension | Hacked Robot Schematics ------------------ None Fabricated ------------ Imp. Remote Force Field | x2 | -3/Research | Preloaded Alien Tech Used ----------------- None Achievements -------------- Main Advantage Project G-00 Revolutionary Research Challenges ------------ None Game ------ Seed PowerBlastArray Manual? 0 Play Time 02:27:52 Cumulative 48.9 hours Start 2024.05.03 @ 13:28:59 End 2024.06.09 @ 13:39:16 Sessions 3 Manual Loads 0 Difficulty Explorer Special Mode None Game No. 62 Rogue 60 Adventurer 0 Explorer 2 Win Type - Total 3 Types 2/0/0/1/0/0/0/0/0 Lore% 30 Gallery% 54 Achievement% 45 Wizard Run 0 Options --------- Layout 0 ASCII 0 Keyboard 0 Movement Numpad Keybinds 0 Fullscreen 2 Font 18/SmallcapsGlow Map View 76x50 Zoom Use 0% Tactical HUD 1 Map Filters NONE Filters NONE Steam 1 RUN: bea1085b-25f1-4e20-9ed9-a05550a921de